[Event "Late-Titled-Tuesday-Blitz-March-12-2024"]
[Site "Chess.com"]
[Date "2024.03.12"]
[Round "9"]
[White "KorolDimitriy75"]
[Black "Byniolus"]
[Result "0-1"]
[WhiteElo "2425"]
[BlackElo "2761"]
[TimeControl "180+1"]
[EndTime "15:40:44 PDT"]
[Termination "Byniolus won on time"]

1. d4 {[%clk 0:03:00.9]} 1... d6 {[%clk 0:03:00.1]} 2. c4 {[%clk 0:03:00.8]}
2... g6 {[%clk 0:03:00.1]} 3. Nf3 {[%clk 0:03:01]} 3... a6 {[%clk 0:03:00.4]} 4.
Nc3 {[%clk 0:03:00.9]} 4... e6 {[%clk 0:03:00.8]} 5. e4 {[%clk 0:02:59.6]} 5...
c6 {[%clk 0:03:00.9]} 6. Be3 {[%clk 0:02:39.2]} 6... f6 {[%clk 0:02:59.9]} 7.
Qd2 {[%clk 0:02:31.8]} 7... b6 {[%clk 0:02:59.1]} 8. Be2 {[%clk 0:02:18.4]} 8...
h6 {[%clk 0:02:58.8]} 9. O-O {[%clk 0:02:15.3]} 9... Ne7 {[%clk 0:02:52.8]} 10.
b4 {[%clk 0:02:00.3]} 10... Bg7 {[%clk 0:02:42]} 11. Rfe1 {[%clk 0:01:54.5]}
11... Nd7 {[%clk 0:02:38.5]} 12. h3 {[%clk 0:01:52.4]} 12... g5 {[%clk
0:02:26.8]} 13. Nh2 {[%clk 0:00:49.9]} 13... O-O {[%clk 0:02:14.8]} 14. f4
{[%clk 0:00:49.3]} 14... e5 {[%clk 0:02:07.7]} 15. dxe5 {[%clk 0:00:42.6]} 15...
dxe5 {[%clk 0:02:07.7]} 16. f5 {[%clk 0:00:39.7]} 16... Qc7 {[%clk 0:01:58.7]}
17. Rad1 {[%clk 0:00:37.5]} 17... Rd8 {[%clk 0:01:56.9]} 18. Qd6 {[%clk
0:00:35.1]} 18... Qxd6 {[%clk 0:01:45.8]} 19. Rxd6 {[%clk 0:00:36]} 19... Bf8
{[%clk 0:01:46.6]} 20. Bxb6 {[%clk 0:00:14.7]} 20... Re8 {[%clk 0:01:45.1]} 21.
Bc7 {[%clk 0:00:14.9]} 21... Ra7 {[%clk 0:01:41.3]} 22. Ba5 {[%clk 0:00:12.7]}
22... Nxf5 {[%clk 0:01:31.4]} 23. Rxc6 {[%clk 0:00:12.1]} 23... Nd4 {[%clk
0:01:28.8]} 0-1

[Event "Late-Titled-Tuesday-Blitz-March-12-2024"]
[Site "Chess.com"]
[Date "2024.03.12"]
[Round "9"]
[White "Incognizance"]
[Black "ritanovikova"]
[Result "0-1"]
[WhiteElo "1844"]
[BlackElo "2269"]
[TimeControl "180+1"]
[EndTime "15:40:49 PDT"]
[Termination "ritanovikova won by resignation"]

1. d4 {[%clk 0:02:57.4]} 1... e5 {[%clk 0:02:59.3]} 2. dxe5 {[%clk 0:02:57]}
2... Nc6 {[%clk 0:02:59.6]} 3. Nf3 {[%clk 0:02:56.8]} 3... Qe7 {[%clk
0:02:58.7]} 4. Nc3 {[%clk 0:02:57.4]} 4... Nxe5 {[%clk 0:02:58.6]} 5. Bf4 {[%clk
0:02:58]} 5... Nxf3+ {[%clk 0:02:56.7]} 6. gxf3 {[%clk 0:02:58.3]} 6... Nf6
{[%clk 0:02:55.2]} 7. e4 {[%clk 0:02:54.4]} 7... c6 {[%clk 0:02:54.1]} 8. Bd3
{[%clk 0:02:50.1]} 8... d5 {[%clk 0:02:53.8]} 9. Qd2 {[%clk 0:02:43.4]} 9... Qd8
{[%clk 0:02:51.8]} 10. exd5 {[%clk 0:02:41.7]} 10... Nxd5 {[%clk 0:02:51]} 11.
Nxd5 {[%clk 0:02:42]} 11... Qxd5 {[%clk 0:02:51.6]} 12. Qe3+ {[%clk 0:02:34.2]}
12... Qe6 {[%clk 0:02:50.4]} 13. O-O-O {[%clk 0:02:33.9]} 13... Qxe3+ {[%clk
0:02:47.6]} 14. Bxe3 {[%clk 0:02:34]} 14... Be6 {[%clk 0:02:46.5]} 15. b3 {[%clk
0:02:27.4]} 15... Ba3+ {[%clk 0:02:45.9]} 16. Kb1 {[%clk 0:02:27.8]} 16... a5
{[%clk 0:02:43.2]} 17. Bc1 {[%clk 0:02:28.2]} 17... Bc5 {[%clk 0:02:41.8]} 18.
Be3 {[%clk 0:02:25]} 18... Bb4 {[%clk 0:02:41.9]} 19. Bd2 {[%clk 0:02:24.9]}
19... Be7 {[%clk 0:02:39.2]} 20. Rhe1 {[%clk 0:02:19.5]} 20... a4 {[%clk
0:02:36.7]} 21. c4 {[%clk 0:02:11]} 21... axb3 {[%clk 0:02:34.9]} 22. axb3
{[%clk 0:02:11.9]} 22... Bf6 {[%clk 0:02:34.9]} 23. Kc2 {[%clk 0:01:59.4]} 23...
Ra2+ {[%clk 0:02:33.1]} 24. Kc1 {[%clk 0:01:58.7]} 24... O-O {[%clk 0:02:25.9]}
25. Re2 {[%clk 0:01:52.5]} 25... Rfa8 {[%clk 0:02:25.1]} 26. Be3 {[%clk
0:01:52.9]} 26... Ra1+ {[%clk 0:02:20.7]} 27. Kd2 {[%clk 0:01:52.5]} 27... R8a2+
{[%clk 0:02:20.4]} 28. Ke1 {[%clk 0:01:52.2]} 28... Bc3+ {[%clk 0:02:20.5]} 29.
Bd2 {[%clk 0:01:49.1]} 29... Bf6 {[%clk 0:01:48]} 30. Be3 {[%clk 0:01:34.1]}
30... g6 {[%clk 0:01:39.7]} 31. Rxa2 {[%clk 0:01:31.4]} 31... Rxa2 {[%clk
0:01:39]} 32. Rd2 {[%clk 0:01:31.8]} 32... Bc3 {[%clk 0:01:38.2]} 33. Ke2 {[%clk
0:01:30.2]} 33... Bxd2 {[%clk 0:01:37.4]} 34. Bxd2 {[%clk 0:01:31.1]} 34... Rb2
{[%clk 0:01:36.2]} 35. b4 {[%clk 0:01:29.7]} 35... Ra2 {[%clk 0:01:30.8]} 36. b5
{[%clk 0:01:26.6]} 36... Bf5 {[%clk 0:01:28.6]} 37. Bxf5 {[%clk 0:01:17.9]}
37... gxf5 {[%clk 0:01:28.2]} 38. bxc6 {[%clk 0:01:18.8]} 38... bxc6 {[%clk
0:01:28.1]} 39. Ke3 {[%clk 0:01:17.7]} 39... Kg7 {[%clk 0:01:26.3]} 40. Kf4
{[%clk 0:01:18.2]} 40... Kg6 {[%clk 0:01:26.5]} 41. Be3 {[%clk 0:01:16.3]} 41...
Ra4 {[%clk 0:01:26.7]} 42. Ke5 {[%clk 0:01:10.7]} 42... Rxc4 {[%clk 0:01:24.8]}
43. Bd4 {[%clk 0:01:03.9]} 43... c5 {[%clk 0:01:23.5]} 44. Kd5 {[%clk
0:01:04.3]} 44... Rxd4+ {[%clk 0:01:22.8]} 0-1

[Event "Late-Titled-Tuesday-Blitz-March-12-2024"]
[Site "Chess.com"]
[Date "2024.03.12"]
[Round "9"]
[White "ChessLover0108"]
[Black "BardArtem"]
[Result "0-1"]
[WhiteElo "2937"]
[BlackElo "2787"]
[TimeControl "180+1"]
[EndTime "15:40:52 PDT"]
[Termination "BardArtem won by resignation"]

1. c4 {[%clk 0:02:59.7]} 1... e6 {[%clk 0:02:58.6]} 2. Nc3 {[%clk 0:02:55.7]}
2... d5 {[%clk 0:02:58.5]} 3. d4 {[%clk 0:02:56.4]} 3... Nf6 {[%clk 0:02:57.7]}
4. cxd5 {[%clk 0:02:56.1]} 4... Nxd5 {[%clk 0:02:58.6]} 5. Nf3 {[%clk
0:02:55.2]} 5... c5 {[%clk 0:02:56.3]} 6. e4 {[%clk 0:02:53.5]} 6... Nxc3 {[%clk
0:02:56.4]} 7. bxc3 {[%clk 0:02:54.4]} 7... cxd4 {[%clk 0:02:56.7]} 8. cxd4
{[%clk 0:02:55.3]} 8... Bb4+ {[%clk 0:02:57.1]} 9. Bd2 {[%clk 0:02:56]} 9...
Bxd2+ {[%clk 0:02:57.6]} 10. Qxd2 {[%clk 0:02:56.9]} 10... O-O {[%clk
0:02:58.3]} 11. Bc4 {[%clk 0:02:57.8]} 11... Nd7 {[%clk 0:02:58.7]} 12. O-O
{[%clk 0:02:58.2]} 12... b6 {[%clk 0:02:59.3]} 13. Rfe1 {[%clk 0:02:58.4]} 13...
Bb7 {[%clk 0:02:59.7]} 14. Re3 {[%clk 0:02:58.6]} 14... Rc8 {[%clk 0:03:00.1]}
15. Bb3 {[%clk 0:02:58.7]} 15... Nf6 {[%clk 0:02:58.7]} 16. Qe1 {[%clk
0:02:59.2]} 16... h6 {[%clk 0:02:54.1]} 17. Rd1 {[%clk 0:02:57.7]} 17... Re8
{[%clk 0:02:53.6]} 18. Ne5 {[%clk 0:02:37.3]} 18... Nd7 {[%clk 0:02:47.7]} 19.
Nc4 {[%clk 0:02:35.1]} 19... Qe7 {[%clk 0:02:27.3]} 20. e5 {[%clk 0:02:33]}
20... Rb8 {[%clk 0:02:11.3]} 21. Nd6 {[%clk 0:02:31.8]} 21... Red8 {[%clk
0:02:11.3]} 22. Rg3 {[%clk 0:02:31.6]} 22... Nf8 {[%clk 0:02:09.4]} 23. d5
{[%clk 0:02:26.4]} 23... Kh8 {[%clk 0:01:48.9]} 24. Qe3 {[%clk 0:02:22.4]} 24...
Bxd5 {[%clk 0:01:32.3]} 25. Bxd5 {[%clk 0:02:11.8]} 25... exd5 {[%clk
0:01:33.2]} 26. Qf3 {[%clk 0:01:40.5]} 26... Rd7 {[%clk 0:01:26.7]} 27. Rxg7
{[%clk 0:01:38.9]} 27... Ng6 {[%clk 0:01:03.1]} 28. Rxf7 {[%clk 0:01:24.8]}
28... Nxe5 {[%clk 0:01:02.5]} 29. Qc3 {[%clk 0:01:25.2]} 29... d4 {[%clk
0:00:50]} 30. Qxd4 {[%clk 0:01:21.2]} 30... Rxd6 {[%clk 0:00:39.2]} 31. Qxd6
{[%clk 0:01:19]} 31... Qxd6 {[%clk 0:00:40.1]} 32. Rxd6 {[%clk 0:01:12.7]} 32...
Nxf7 {[%clk 0:00:40.5]} 33. Rd7 {[%clk 0:01:13.3]} 33... Rd8 {[%clk 0:00:38]}
0-1

[Event "Late-Titled-Tuesday-Blitz-March-12-2024"]
[Site "Chess.com"]
[Date "2024.03.12"]
[Round "9"]
[White "Fandorine"]
[Black "Skatchkov_V"]
[Result "1-0"]
[WhiteElo "2946"]
[BlackElo "2684"]
[TimeControl "180+1"]
[EndTime "15:41:03 PDT"]
[Termination "Fandorine won by resignation"]

1. d4 {[%clk 0:03:00.9]} 1... d5 {[%clk 0:03:00.6]} 2. c4 {[%clk 0:02:59.8]}
2... e6 {[%clk 0:03:01]} 3. Nf3 {[%clk 0:02:59.9]} 3... Nf6 {[%clk 0:03:00.3]}
4. Qc2 {[%clk 0:02:57.1]} 4... Nc6 {[%clk 0:02:13.7]} 5. Bg5 {[%clk 0:02:45.7]}
5... Bb4+ {[%clk 0:02:09.3]} 6. Nbd2 {[%clk 0:02:45.3]} 6... h6 {[%clk
0:02:06.7]} 7. Bxf6 {[%clk 0:02:44.9]} 7... Qxf6 {[%clk 0:02:05.2]} 8. e3 {[%clk
0:02:42.4]} 8... Bd7 {[%clk 0:01:58.9]} 9. Bd3 {[%clk 0:02:40.8]} 9... dxc4
{[%clk 0:01:50]} 10. Bxc4 {[%clk 0:02:39.7]} 10... e5 {[%clk 0:01:47.6]} 11. d5
{[%clk 0:02:36.2]} 11... Ne7 {[%clk 0:01:47.5]} 12. O-O {[%clk 0:02:35.7]} 12...
Bd6 {[%clk 0:01:42.2]} 13. Qb3 {[%clk 0:02:26.8]} 13... O-O {[%clk 0:01:37.7]}
14. Bd3 {[%clk 0:02:20.6]} 14... Bf5 {[%clk 0:01:28.6]} 15. Bxf5 {[%clk
0:02:17.6]} 15... Qxf5 {[%clk 0:01:26.3]} 16. e4 {[%clk 0:02:12.2]} 16... Qg6
{[%clk 0:01:24.4]} 17. Rfe1 {[%clk 0:02:10]} 17... a6 {[%clk 0:01:16.7]} 18. Nc4
{[%clk 0:02:08]} 18... b5 {[%clk 0:01:16.5]} 19. Ncxe5 {[%clk 0:02:06.7]} 19...
Qh5 {[%clk 0:01:08.3]} 20. Nd3 {[%clk 0:02:01.7]} 20... f6 {[%clk 0:01:02.4]}
21. h3 {[%clk 0:01:56]} 21... Kh8 {[%clk 0:00:54.2]} 22. Rac1 {[%clk 0:01:55.1]}
22... g5 {[%clk 0:00:50.8]} 23. e5 {[%clk 0:01:50.3]} 23... fxe5 {[%clk
0:00:50.9]} 24. Ndxe5 {[%clk 0:01:50.4]} 24... Rf4 {[%clk 0:00:39.7]} 25. Ng4
{[%clk 0:01:39.4]} 25... Raf8 {[%clk 0:00:37.7]} 26. Re6 {[%clk 0:01:38.1]}
26... Rxg4 {[%clk 0:00:28.2]} 27. hxg4 {[%clk 0:01:38.1]} 27... Qxg4 {[%clk
0:00:29.1]} 28. Rxh6+ {[%clk 0:01:31.9]} 28... Kg7 {[%clk 0:00:29.3]} 29. Rh3
{[%clk 0:01:26.3]} 29... Ng6 {[%clk 0:00:21.5]} 30. Qc3+ {[%clk 0:01:24.9]}
30... Rf6 {[%clk 0:00:19.5]} 31. Rh7+ {[%clk 0:01:20.2]} 31... Kxh7 {[%clk
0:00:19]} 32. Qxf6 {[%clk 0:01:20.9]} 32... Nf4 {[%clk 0:00:17.8]} 33. Nxg5+
{[%clk 0:01:20.3]} 1-0

[Event "Late-Titled-Tuesday-Blitz-March-12-2024"]
[Site "Chess.com"]
[Date "2024.03.12"]
[Round "9"]
[White "Gryffindorac8"]
[Black "Redzishchess"]
[Result "1-0"]
[WhiteElo "2381"]
[BlackElo "2494"]
[TimeControl "180+1"]
[EndTime "15:41:04 PDT"]
[Termination "Gryffindorac8 won on time"]

1. d4 {[%clk 0:03:00.9]} 1... Nf6 {[%clk 0:02:53.2]} 2. c4 {[%clk 0:03:00.7]}
2... g6 {[%clk 0:02:53.6]} 3. Nc3 {[%clk 0:03:00.4]} 3... d5 {[%clk 0:02:53.6]}
4. cxd5 {[%clk 0:02:59.6]} 4... Nxd5 {[%clk 0:02:54.5]} 5. e4 {[%clk 0:02:57.1]}
5... Nxc3 {[%clk 0:02:54.1]} 6. bxc3 {[%clk 0:02:58]} 6... Bg7 {[%clk
0:02:54.4]} 7. Nf3 {[%clk 0:02:57.5]} 7... O-O {[%clk 0:02:53.2]} 8. h3 {[%clk
0:02:55.5]} 8... c5 {[%clk 0:02:53.6]} 9. Be2 {[%clk 0:02:55.1]} 9... Nc6 {[%clk
0:02:50.3]} 10. Be3 {[%clk 0:02:54.1]} 10... cxd4 {[%clk 0:02:48.7]} 11. cxd4
{[%clk 0:02:53.7]} 11... Qa5+ {[%clk 0:02:49.3]} 12. Bd2 {[%clk 0:02:53.9]}
12... Qa3 {[%clk 0:02:48.2]} 13. d5 {[%clk 0:02:53.4]} 13... Nd4 {[%clk
0:02:40.2]} 14. Nxd4 {[%clk 0:02:38.1]} 14... Bxd4 {[%clk 0:02:41.1]} 15. O-O
{[%clk 0:02:35.8]} 15... Bxh3 {[%clk 0:01:32]} 16. Bh6 {[%clk 0:02:01.3]} 16...
Qc5 {[%clk 0:00:01.6]} 17. Rc1 {[%clk 0:01:52.4]} 17... Qb6 {[%clk 0:00:01.1]}
18. Bxf8 {[%clk 0:01:51.1]} 18... Rxf8 {[%clk 0:00:02]} 19. gxh3 {[%clk
0:01:48.3]} 19... Qf6 {[%clk 0:00:02.2]} 20. Qd3 {[%clk 0:01:43.4]} 20... Be5
{[%clk 0:00:02.2]} 21. Qf3 {[%clk 0:01:41]} 21... Qg5+ {[%clk 0:00:02.5]} 22.
Qg2 {[%clk 0:01:39.4]} 22... Qh4 {[%clk 0:00:03]} 23. Qg4 {[%clk 0:01:31.3]}
23... Qh6 {[%clk 0:00:03.1]} 24. f4 {[%clk 0:01:27.6]} 24... Bd4+ {[%clk
0:00:02.5]} 25. Kg2 {[%clk 0:01:26]} 25... f5 {[%clk 0:00:03]} 26. Qg5 {[%clk
0:01:19.1]} 26... Qg7 {[%clk 0:00:01.1]} 27. e5 {[%clk 0:01:17.3]} 1-0

[Event "Late-Titled-Tuesday-Blitz-March-12-2024"]
[Site "Chess.com"]
[Date "2024.03.12"]
[Round "9"]
[White "oskariot"]
[Black "jcibarra"]
[Result "0-1"]
[WhiteElo "2765"]
[BlackElo "2919"]
[TimeControl "180+1"]
[EndTime "15:41:09 PDT"]
[Termination "jcibarra won by resignation"]

1. e4 {[%clk 0:02:59.7]} 1... c5 {[%clk 0:03:00]} 2. Nf3 {[%clk 0:02:59.9]} 2...
e6 {[%clk 0:03:00.5]} 3. g3 {[%clk 0:02:58.6]} 3... Nc6 {[%clk 0:03:00.4]} 4.
Bg2 {[%clk 0:02:59.1]} 4... Nf6 {[%clk 0:03:01]} 5. Nc3 {[%clk 0:02:59.8]} 5...
d6 {[%clk 0:02:56.9]} 6. O-O {[%clk 0:02:58.7]} 6... Be7 {[%clk 0:02:56.5]} 7.
d4 {[%clk 0:02:57.1]} 7... cxd4 {[%clk 0:02:57.4]} 8. Nxd4 {[%clk 0:02:58]} 8...
Bd7 {[%clk 0:02:58.2]} 9. Nb3 {[%clk 0:02:58.6]} 9... a6 {[%clk 0:02:57.5]} 10.
a4 {[%clk 0:02:58.3]} 10... O-O {[%clk 0:02:56.6]} 11. a5 {[%clk 0:02:55.9]}
11... Ne5 {[%clk 0:02:54.9]} 12. f4 {[%clk 0:02:54.2]} 12... Nc4 {[%clk
0:02:54.1]} 13. g4 {[%clk 0:02:54.8]} 13... Bc6 {[%clk 0:02:48.2]} 14. g5 {[%clk
0:02:50.9]} 14... Nd7 {[%clk 0:02:48.1]} 15. Qe2 {[%clk 0:02:49]} 15... b5
{[%clk 0:02:42.8]} 16. axb6 {[%clk 0:02:41.3]} 16... Ndxb6 {[%clk 0:02:38.4]}
17. Kh1 {[%clk 0:02:34.6]} 17... Re8 {[%clk 0:02:37.4]} 18. Qf2 {[%clk
0:02:25.4]} 18... Ra7 {[%clk 0:02:22.6]} 19. Na5 {[%clk 0:02:03.9]} 19... Nxa5
{[%clk 0:02:15.9]} 20. Rxa5 {[%clk 0:02:04.8]} 20... Nc4 {[%clk 0:02:04.7]} 21.
Qxa7 {[%clk 0:01:44.2]} 21... Qxa5 {[%clk 0:02:04.2]} 22. f5 {[%clk 0:01:37.9]}
22... exf5 {[%clk 0:02:01.2]} 23. exf5 {[%clk 0:01:21.4]} 23... Bxg2+ {[%clk
0:01:58]} 24. Kxg2 {[%clk 0:01:22.3]} 24... Qe5 {[%clk 0:01:24.8]} 25. Qxa6
{[%clk 0:01:02.3]} 25... d5 {[%clk 0:01:21.4]} 26. Qc6 {[%clk 0:00:49.5]} 26...
Rd8 {[%clk 0:01:09.5]} 27. Bf4 {[%clk 0:00:34.5]} 27... Qxf5 {[%clk 0:01:06.9]}
28. h3 {[%clk 0:00:25.6]} 28... Bxg5 {[%clk 0:01:02.2]} 29. Bc7 {[%clk
0:00:25.5]} 29... Ne3+ {[%clk 0:01:02]} 0-1

[Event "Late-Titled-Tuesday-Blitz-March-12-2024"]
[Site "Chess.com"]
[Date "2024.03.12"]
[Round "9"]
[White "Koalaskakistis"]
[Black "OverallStranger"]
[Result "1-0"]
[WhiteElo "2521"]
[BlackElo "2379"]
[TimeControl "180+1"]
[EndTime "15:41:12 PDT"]
[Termination "Koalaskakistis won by resignation"]

1. e4 {[%clk 0:02:57.7]} 1... c5 {[%clk 0:02:59.8]} 2. Nf3 {[%clk 0:02:56.4]}
2... Nc6 {[%clk 0:03:00.5]} 3. d4 {[%clk 0:02:56.2]} 3... cxd4 {[%clk
0:03:01.4]} 4. Nxd4 {[%clk 0:02:56.6]} 4... g6 {[%clk 0:03:02.3]} 5. c4 {[%clk
0:02:55.5]} 5... Nf6 {[%clk 0:03:02.6]} 6. Nc3 {[%clk 0:02:55.1]} 6... d6 {[%clk
0:03:03.3]} 7. Be3 {[%clk 0:02:54.5]} 7... Ng4 {[%clk 0:03:03.3]} 8. Bc1 {[%clk
0:02:52.6]} 8... Qb6 {[%clk 0:03:03.2]} 9. f3 {[%clk 0:02:31.4]} 9... Nxd4
{[%clk 0:03:01.1]} 10. fxg4 {[%clk 0:02:29.9]} 10... Bxg4 {[%clk 0:03:00.1]} 11.
Qxg4 {[%clk 0:02:13.2]} 11... Nc2+ {[%clk 0:03:00]} 12. Kd1 {[%clk 0:02:12.5]}
12... Nxa1 {[%clk 0:02:59.4]} 13. Nd5 {[%clk 0:02:07.2]} 13... Qc6 {[%clk
0:02:52.4]} 14. c5 {[%clk 0:02:03.7]} 14... a6 {[%clk 0:02:11]} 15. cxd6 {[%clk
0:02:01]} 15... Qxd6 {[%clk 0:02:06.1]} 16. Bf4 {[%clk 0:01:56.3]} 16... e5
{[%clk 0:02:06.2]} 17. Bg5 {[%clk 0:01:52]} 17... f5 {[%clk 0:02:03.5]} 18. Qf3
{[%clk 0:01:38.8]} 18... Bg7 {[%clk 0:01:45.2]} 19. Bd3 {[%clk 0:01:00.1]} 19...
Qc6 {[%clk 0:01:21.6]} 20. Kd2 {[%clk 0:00:53.8]} 20... fxe4 {[%clk 0:01:03.2]}
21. Bxe4 {[%clk 0:00:44.8]} 21... Qc5 {[%clk 0:00:49.3]} 22. Rxa1 {[%clk
0:00:36.3]} 22... Rf8 {[%clk 0:00:46.3]} 23. Qe3 {[%clk 0:00:33.4]} 23... Rf2+
{[%clk 0:00:39]} 24. Ke1 {[%clk 0:00:30.1]} 24... Qxe3+ {[%clk 0:00:33.5]} 25.
Bxe3 {[%clk 0:00:30.4]} 25... Rxb2 {[%clk 0:00:33.7]} 26. Nc7+ {[%clk
0:00:30.8]} 1-0

[Event "Late-Titled-Tuesday-Blitz-March-12-2024"]
[Site "Chess.com"]
[Date "2024.03.12"]
[Round "9"]
[White "kleber2007"]
[Black "BeanScreen"]
[Result "0-1"]
[WhiteElo "2540"]
[BlackElo "2723"]
[TimeControl "180+1"]
[EndTime "15:41:13 PDT"]
[Termination "BeanScreen won by resignation"]

1. Nf3 {[%clk 0:03:00.9]} 1... d5 {[%clk 0:02:59.4]} 2. g3 {[%clk 0:03:00.6]}
2... c6 {[%clk 0:02:58.9]} 3. Bg2 {[%clk 0:02:57.8]} 3... Bg4 {[%clk 0:02:59.5]}
4. c4 {[%clk 0:02:57.6]} 4... e6 {[%clk 0:02:58.1]} 5. cxd5 {[%clk 0:02:55.3]}
5... exd5 {[%clk 0:02:56.4]} 6. Ne5 {[%clk 0:02:49.4]} 6... Bh5 {[%clk
0:02:55.1]} 7. Qb3 {[%clk 0:02:48.8]} 7... Nd7 {[%clk 0:02:51.6]} 8. Nxd7 {[%clk
0:02:30.1]} 8... Qxd7 {[%clk 0:02:52.5]} 9. d4 {[%clk 0:02:30.2]} 9... Nf6
{[%clk 0:02:47.8]} 10. Nd2 {[%clk 0:02:29.4]} 10... Bd6 {[%clk 0:02:43]} 11. Nf3
{[%clk 0:02:29]} 11... O-O {[%clk 0:02:40.7]} 12. O-O {[%clk 0:02:28.5]} 12...
Rfe8 {[%clk 0:02:40.2]} 13. Re1 {[%clk 0:02:25.6]} 13... Ne4 {[%clk 0:02:35.7]}
14. Bf4 {[%clk 0:02:14.8]} 14... Bxf4 {[%clk 0:02:33.9]} 15. gxf4 {[%clk
0:02:14.5]} 15... f6 {[%clk 0:02:28.5]} 16. Qd1 {[%clk 0:02:05.1]} 16... Qf5
{[%clk 0:02:20.2]} 17. e3 {[%clk 0:02:04.2]} 17... Qg6 {[%clk 0:02:08.2]} 18.
Nh4 {[%clk 0:01:52.4]} 18... Qh6 {[%clk 0:01:47.3]} 19. Nf5 {[%clk 0:01:50.9]}
19... Qg6 {[%clk 0:01:44.4]} 20. Nh4 {[%clk 0:01:50.6]} 20... Qf7 {[%clk
0:01:44.3]} 21. Bf3 {[%clk 0:01:45.7]} 21... Bxf3 {[%clk 0:01:40.9]} 22. Qxf3
{[%clk 0:01:45.4]} 22... f5 {[%clk 0:01:31.5]} 23. Qe2 {[%clk 0:01:37.1]} 23...
Re6 {[%clk 0:01:21.4]} 24. f3 {[%clk 0:01:22.8]} 24... Nd6 {[%clk 0:01:20.8]}
25. Kh1 {[%clk 0:01:19]} 25... Qh5 {[%clk 0:01:19]} 26. Rg1 {[%clk 0:00:50.3]}
26... Qxh4 {[%clk 0:01:17.9]} 27. Rg5 {[%clk 0:00:50]} 27... Rae8 {[%clk
0:01:09.9]} 28. Rag1 {[%clk 0:00:48.8]} 28... g6 {[%clk 0:01:09]} 29. Qg2 {[%clk
0:00:48.2]} 29... Kh8 {[%clk 0:00:50.1]} 30. e4 {[%clk 0:00:37.3]} 30... dxe4
{[%clk 0:00:48.4]} 31. fxe4 {[%clk 0:00:37]} 31... Nxe4 {[%clk 0:00:48]} 32.
Rxf5 {[%clk 0:00:34]} 32... Nf2+ {[%clk 0:00:47.5]} 0-1

[Event "Late-Titled-Tuesday-Blitz-March-12-2024"]
[Site "Chess.com"]
[Date "2024.03.12"]
[Round "9"]
[White "Bkmzzzzz"]
[Black "djano"]
[Result "0-1"]
[WhiteElo "2397"]
[BlackElo "2590"]
[TimeControl "180+1"]
[EndTime "15:41:14 PDT"]
[Termination "djano won by resignation"]

1. e4 {[%clk 0:03:00.9]} 1... c5 {[%clk 0:02:59.6]} 2. Nf3 {[%clk 0:03:00]} 2...
Nc6 {[%clk 0:02:59.7]} 3. Bb5 {[%clk 0:02:59.1]} 3... g5 {[%clk 0:02:57.7]} 4.
Nxg5 {[%clk 0:02:49.9]} 4... Nf6 {[%clk 0:02:56.8]} 5. d3 {[%clk 0:02:17]} 5...
Rg8 {[%clk 0:02:56.5]} 6. g3 {[%clk 0:02:03.4]} 6... Nd4 {[%clk 0:02:49.8]} 7.
Bc4 {[%clk 0:02:01]} 7... d5 {[%clk 0:02:49.9]} 8. exd5 {[%clk 0:01:58.1]} 8...
Bg4 {[%clk 0:02:40.9]} 9. f3 {[%clk 0:01:46.6]} 9... Rxg5 {[%clk 0:02:39.7]} 10.
fxg4 {[%clk 0:01:27.6]} 10... Re5+ {[%clk 0:02:38.5]} 11. Kf2 {[%clk 0:01:22.5]}
11... b5 {[%clk 0:02:27.6]} 12. Bb3 {[%clk 0:01:11]} 12... Re2+ {[%clk
0:02:26.3]} 13. Kf1 {[%clk 0:01:11.1]} 13... Nxg4 {[%clk 0:02:20.6]} 14. Qxe2
{[%clk 0:00:41]} 14... Nxe2 {[%clk 0:02:19]} 15. Kxe2 {[%clk 0:00:41.9]} 15...
Rc8 {[%clk 0:01:57]} 16. c4 {[%clk 0:00:41.3]} 16... Bg7 {[%clk 0:01:46.2]} 17.
cxb5 {[%clk 0:00:33.8]} 17... c4 {[%clk 0:01:41.9]} 18. Bxc4 {[%clk 0:00:32.5]}
18... Qb6 {[%clk 0:01:39.7]} 19. Rf1 {[%clk 0:00:24.3]} 19... Nxh2 {[%clk
0:01:39.7]} 20. Rf5 {[%clk 0:00:19.9]} 20... Qg6 {[%clk 0:01:37.5]} 21. Rg5
{[%clk 0:00:16.5]} 21... Qf6 {[%clk 0:01:37.7]} 22. Nc3 {[%clk 0:00:12.8]} 22...
Qf1+ {[%clk 0:01:32.9]} 23. Ke3 {[%clk 0:00:12.5]} 23... Bh6 {[%clk 0:01:31.1]}
24. Ne4 {[%clk 0:00:10.8]} 24... f6 {[%clk 0:01:19.8]} 25. d6 {[%clk 0:00:09.4]}
25... Bxg5+ {[%clk 0:01:12.9]} 26. Nxg5 {[%clk 0:00:09]} 26... fxg5 {[%clk
0:01:13.3]} 27. Be6 {[%clk 0:00:07.3]} 27... Rxc1 {[%clk 0:01:12]} 28. d7+
{[%clk 0:00:04.6]} 28... Kd8 {[%clk 0:01:12.2]} 0-1